bitfinex/quotes_SOLUSD_20241010
["timestamp","ask_amount","ask_price","bid_price","bid_amount"]
[1728545012597,7.1384,140.09,140.05,7.1401]
[1728545013600,7.1384,140.09,140.05,23.776884]
[1728545023300,0.25098,140.1,140.04,16.5629]
[1728545024407,7.1394,140.07,140.04,16.5629]
[1728545033128,0.25098,140.1,140.04,23.7036]
[1728545033129,0.12549,140.1,140.04,23.7036]
[1728545033303,0.12549,140.1,140.05,23.776884]
[1728545033621,0.25098,140.1,140.04,16.5629]
[1728545034505,7.1391,140.08,140.04,16.5629]
[1728545038628,7.1391,140.08,140.05,23.776884]
[1728545039826,7.1387,140.09,140.05,23.776884]
[1728545040702,20.0,140.09,140.06,1.42783054]
[1728545041429,27.1383,140.09,140.05,30.917084]
[1728545042120,27.1383,140.09,140.06,1.42776723]
[1728545042312,7.1377,140.11,140.06,1.42776723]
[1728545042519,20.0,140.1,140.06,8.56736723]
[1728545042702,7.1379,140.1,140.06,8.56736723]
[1728545043939,7.1379,140.1,140.07,23.776884]
[1728545044232,7.1373,140.11,140.08,1.42760449]
[1728545046307,17.8387,140.15,140.07,30.916084]
[1728545046308,7.1367,140.12,140.07,30.916084]
[1728545046732,7.1372,140.11,140.07,30.916084]
[1728545050647,7.1372,140.11,140.06,30.916584]
[1728545059444,7.1372,140.11,140.08,23.776884]
[1728545064879,7.1372,140.11,140.07,23.776884]
[1728545071966,20.25098,140.14,140.06,23.776884]
[1728545073368,7.1383,140.09,140.06,23.776884]
[1728545083774,7.1371,140.12,140.07,7.139]
[1728545083979,20.0,140.11,140.07,26.41450556]
[1728545084762,20.25098,140.14,140.07,26.41450556]
[1728545085091,7.1373,140.11,140.07,26.41450556]
[1728545085789,7.1373,140.11,140.07,24.9869]
[1728545086089,7.1373,140.11,140.07,17.8477]
[1728545086467,7.1373,140.11,140.08,1.42757119]
[1728545091272,7.1377,140.1,140.06,30.916484]
[1728545099494,20.25098,140.12,140.06,23.776884]
[1728545099999,7.1383,140.09,140.06,23.776884]
[1728545115216,20.25098,140.12,140.06,23.776884]
[1728545115217,7.1377,140.1,140.07,1.42763572]
[1728545116226,7.1377,140.1,140.06,23.776884]
[1728545118022,7.1377,140.1,140.07,1.42764459]
[1728545118217,27.137,140.12,140.08,23.776884]
[1728545121719,23.72295524,140.15,140.08,23.776884]
[1728545122018,7.1373,140.11,140.08,23.776884]
[1728545122219,0.25098,140.14,140.06,23.776884]
[1728545122220,7.1382,140.09,140.06,23.776884]
[1728545123328,20.0,140.13,140.06,23.776884]
[1728545123545,7.1378,140.1,140.06,23.776884]
[1728545130418,18.09098,140.14,140.06,23.776884]
[1728545130624,7.1377,140.1,140.06,23.776884]
[1728545139727,20.0,140.13,140.06,23.776884]
[1728545139939,7.1373,140.11,140.07,1.42755794]
[1728545141043,7.1373,140.11,140.06,30.916484]
[1728545141367,7.1373,140.11,140.07,1.42760015]
[1728545143244,7.1373,140.11,140.06,30.916484]
[1728545144166,7.1373,140.11,140.07,1.42760094]
[1728545144365,7.1373,140.11,140.06,30.916484]
[1728545144549,7.1377,140.1,140.06,30.916484]
[1728545144734,7.1377,140.1,140.07,1.42759845]
[1728545146451,7.1377,140.1,140.06,30.916484]
[1728545146966,0.25098,140.12,140.07,1.42759152]
[1728545147273,7.1379,140.1,140.06,23.776884]
[1728545152763,7.1379,140.1,140.06,30.916384]
[1728545157366,7.1383,140.09,140.06,23.776884]
[1728545158359,7.1379,140.1,140.06,23.776884]
[1728545160171,17.96789,140.12,140.06,23.776884]
[1728545160366,7.1386,140.09,140.06,23.776884]
[1728545160672,17.96789,140.12,140.06,23.776884]
[1728545160881,0.12549,140.12,140.06,30.916584]
[1728545161070,7.1372,140.11,140.07,1.42764606]
[1728545161376,0.12549,140.12,140.07,1.42764606]
[1728545161377,7.1367,140.12,140.08,23.776884]
[1728545161749,7.1367,140.12,140.09,1.42743457]
[1728545163070,7.1367,140.12,140.08,23.776884]
[1728545164146,0.12549,140.13,140.08,23.776884]
[1728545164362,7.1373,140.11,140.08,23.776884]
[1728545165179,7.1373,140.11,140.07,23.776884]
[1728545171374,7.1368,140.12,140.07,30.915784]
[1728545171951,7.1373,140.11,140.07,30.915784]
[1728545173051,7.05373845,140.11,140.07,30.915784]
[1728545175673,7.1365,140.13,140.09,30.914984]
[1728545175878,7.1365,140.13,140.1,1.42727839]
[1728545176459,7.1365,140.13,140.09,30.914984]
[1728545176682,7.1365,140.13,140.1,1.4272715]
[1728545177878,7.1365,140.13,140.09,30.914984]
[1728545178550,7.1365,140.13,140.09,23.776884]
[1728545178753,7.1371,140.12,140.09,23.776884]
[1728545185382,0.12549,140.15,140.07,23.776884]
[1728545185383,7.1381,140.1,140.07,23.776884]
[1728545186781,7.1372,140.12,140.08,7.1387]
[1728545186983,7.1374,140.11,140.07,30.916084]
[1728545187371,7.1367,140.12,140.07,30.916084]
[1728545187569,19.00320267,140.16,140.09,7.1381]
[1728545187764,7.1363,140.13,140.09,30.914984]
[1728545188188,7.1363,140.13,140.09,23.776884]
[1728545194500,7.1363,140.13,140.09,30.915084]
[1728545194701,0.25098,140.16,140.11,23.776884]
[1728545194880,7.1357,140.14,140.11,23.776884]
[1728545195487,7.1357,140.14,140.11,25.20408414]
[1728545198294,7.1357,140.14,140.11,23.776884]
[1728545199276,7.1357,140.14,140.1,23.776884]
[1728545213619,7.1362,140.13,140.1,23.776884]
[1728545218695,0.25098,140.16,140.09,23.776884]
[1728545218906,20.25098,140.16,140.09,23.776884]
[1728545219931,7.1368,140.12,140.09,23.776884]
[1728545224114,7.1373,140.11,140.09,23.776884]
[1728545224316,7.1368,140.12,140.09,23.776884]
[1728545225051,20.25098,140.16,140.09,23.776884]
[1728545225354,7.1358,140.14,140.09,30.915084]
[1728545225524,20.25098,140.16,140.09,30.915084]
[1728545225723,7.1363,140.13,140.09,30.915084]
[1728545226740,7.1358,140.14,140.11,23.776884]
[1728545226945,7.1358,140.14,140.09,30.915084]
[1728545228028,7.1363,140.13,140.09,30.915084]
[1728545232141,7.1363,140.13,140.09,23.776884]
[1728545232336,7.1371,140.12,140.09,23.776884]
[1728545232543,7.1372,140.11,140.08,15.7849]
[1728545234451,0.12549,140.15,140.08,15.7849]
[1728545234653,7.1368,140.12,140.08,15.7849]
[1728545237144,7.1368,140.12,140.08,23.776884]
[1728545237489,7.1373,140.11,140.08,23.776884]
[1728545246787,7.1373,140.11,140.07,17.8476]
[1728545255694,7.1373,140.11,140.07,19.27519331]
[1728545255996,7.1373,140.11,140.07,26.41439331]
[1728545257280,7.1373,140.11,140.07,24.9868]
[1728545280416,7.1369,140.12,140.08,30.915584]
[1728545281002,7.1369,140.12,140.08,23.776884]
[1728545281204,7.1374,140.11,140.08,23.776884]
[1728545285522,20.0,140.16,140.08,39.227584]
[1728545285701,16.5419059,140.17,140.11,23.776884]
[1728545285702,7.1353,140.15,140.11,23.776884]
[1728545286314,7.1358,140.14,140.11,23.776884]
[1728545292308,3.38173455,140.18,140.11,30.913984]
[1728545292309,7.1353,140.15,140.11,30.913984]
[1728545293224,3.38173455,140.18,140.1,30.914484]
[1728545293225,7.1357,140.14,140.1,30.914484]
[1728545306243,3.38173455,140.18,140.1,23.776884]
[1728545306447,20.0,140.16,140.09,23.776884]
[1728545306634,7.1367,140.12,140.09,23.776884]
[1728545309520,7.1367,140.12,140.08,15.4507]
[1728545309730,7.1373,140.11,140.08,23.776884]
[1728545312448,7.1373,140.11,140.07,23.776884]
[1728545315139,7.1373,140.11,140.08,1.42757379]
[1728545317224,7.1373,140.11,140.07,23.776884]
[1728545317546,7.1373,140.11,140.07,25.20445667]
[1728545320154,7.1373,140.11,140.07,23.776884]
[1728545320728,7.1373,140.11,140.08,1.42757183]
[1728545321022,7.1373,140.11,140.07,23.776884]
[1728545322337,7.1373,140.11,140.08,1.42757149]
[1728545327149,37.8386,140.15,140.09,23.776884]
[1728545327454,7.1367,140.12,140.07,30.916084]
[1728545328154,7.1367,140.12,140.07,23.776884]
[1728545328354,7.1367,140.12,140.09,23.776884]
[1728545330456,20.0,140.15,140.1,1.42739644]
[1728545330636,20.0,140.13,140.1,1.42739644]
[1728545331051,27.1363,140.13,140.1,1.42739644]
[1728545331468,7.1368,140.12,140.09,23.776884]
[1728545336354,7.1373,140.11,140.07,15.5501]
[1728545340357,7.1379,140.1,140.07,15.5501]
[1728545341667,7.1379,140.1,140.06,23.776884]
[1728545350656,38.09368,140.12,140.02,24.9958]
[1728545350966,38.09368,140.12,140.01,15.7224]
[1728545350967,7.1404,140.05,140.01,15.7224]
[1728545352457,7.1409,140.04,140.01,15.7224]
[1728545354952,7.1404,140.05,140.01,15.7224]
[1728545355972,7.1398,140.06,140.02,25.20507626]
[1728545356269,20.25098,140.08,140.02,23.776884]
[1728545356470,7.1403,140.05,140.02,23.776884]
[1728545357256,20.25098,140.08,140.02,23.776884]
[1728545357659,7.1408,140.04,140.01,15.7224]
[1728545360050,20.25098,140.08,140.02,23.776884]
[1728545360252,7.1403,140.05,140.02,23.776884]
[1728545364963,7.1403,140.05,140.01,15.7224]
[1728545368082,7.1409,140.04,140.01,15.7224]
[1728545375956,7.1409,140.04,140.01,17.15068027]
[1728545376359,7.1409,140.04,140.01,15.7224]
[1728545376560,7.1409,140.04,140.01,17.15069357]
[1728545376961,7.1409,140.04,140.01,15.7224]
[1728545378085,7.1409,140.04,140.01,17.15061263]
[1728545378382,7.1409,140.04,140.01,15.7224]
[1728545379775,20.25098,140.08,140.0,0.8224983]
[1728545379966,7.1414,140.03,140.0,0.8224983]
[1728545380682,7.1418,140.02,140.0,0.8224983]
[1728545381886,7.1414,140.03,140.0,0.8224983]
[1728545392778,20.25098,140.04,140.0,0.8224983]
[1728545394387,7.1423,140.01,140.0,0.8224983]
[1728545399197,7.26779,140.01,140.0,0.8224983]
[1728545402208,27.26779,140.01,140.0,0.8224983]
[1728545403810,27.1423,140.01,140.0,0.8224983]
[1728545404006,20.0,140.01,140.0,0.8224983]
[1728545404313,27.1423,140.01,140.0,0.8224983]
[1728545410901,7.1419,140.02,140.0,0.8224983]
[1728545417612,20.25098,140.04,140.0,0.8224983]
[1728545417825,7.1423,140.01,140.0,0.8224983]
[1728545426119,27.1423,140.01,140.0,0.8224983]
[1728545426441,27.39328,140.01,140.0,0.8224983]
[1728545429232,27.39328,140.01,140.0,9.83e-05]
[1728545429413,7.1454,139.95,139.91,15.2788]
[1728545429618,7.1448,139.97,139.91,22.4261]
[1728545429827,7.1452,139.96,139.92,8.57599862]
[1728545430218,7.1452,139.96,139.91,15.2788]
[1728545430527,7.1452,139.96,139.92,7.1469]
[1728545430930,7.1452,139.96,139.93,23.776884]
[1728545431124,7.1452,139.96,139.94,1.42898388]
[1728545431436,7.1452,139.96,139.93,23.776884]
[1728545431817,7.1452,139.96,139.92,23.776884]
[1728545432017,7.1452,139.96,139.92,25.20598309]
[1728545432326,7.1452,139.96,139.92,23.776884]
[1728545432722,7.1444,139.97,139.94,23.776884]
[1728545433037,20.0,139.98,139.95,1.42892957]
[1728545433221,20.0,140.01,139.94,30.922584]
[1728545433416,33.6127,140.02,139.94,30.922584]
[1728545433644,7.1439,139.98,139.95,1.42884118]
[1728545434249,7.1439,139.98,139.95,1.42886506]
[1728545434741,7.1439,139.98,139.93,30.922884]
[1728545434933,7.1445,139.97,139.93,30.922884]
[1728545435126,7.1445,139.97,139.93,23.776884]
[1728545435530,7.1452,139.96,139.92,17.8663]
[1728545435924,7.1452,139.96,139.92,19.29541056]
[1728545436117,7.1454,139.95,139.92,17.8663]
[1728545436538,7.145,139.96,139.92,17.8663]
[1728545438738,20.25098,139.99,139.92,17.8663]
[1728545439048,7.1454,139.95,139.92,17.8663]
[1728545439838,20.25098,139.99,139.91,15.2788]
[1728545440024,7.1469,139.93,139.91,15.2788]
[1728545440226,7.1469,139.93,139.89,17.95091963]
[1728545440432,7.1469,139.92,139.89,0.08041963]
[1728545440732,7.1459,139.94,139.89,7.22871963]
[1728545441242,7.1459,139.94,139.9,1.42938695]
[1728545441422,7.1459,139.94,139.89,7.22871963]
[1728545442234,7.1459,139.94,139.9,23.776884]
[1728545443753,20.25098,139.97,139.91,1.42931305]
[1728545443929,20.0,139.94,139.91,23.776884]
[1728545444256,7.1454,139.95,139.91,23.776884]
[1728545444450,20.0,139.95,139.91,7.1474]
[1728545444743,6.5545,140.0,139.93,23.776884]
[1728545445342,7.1445,139.97,139.93,23.776884]
[1728545445850,7.1444,139.97,139.93,23.776884]
[1728545446527,7.145,139.96,139.92,15.4096]
[1728545446729,7.1454,139.95,139.92,15.4096]
[1728545447439,7.146,139.94,139.9,17.869]
[1728545448640,7.146,139.94,139.9,19.29830599]
[1728545448823,7.1464,139.93,139.9,23.776884]
[1728545449227,7.1464,139.93,139.89,23.85730363]
[1728545450747,7.1464,139.93,139.89,25.28672207]
[1728545451352,7.1464,139.93,139.89,23.85730363]
[1728545452556,7.1474,139.91,139.89,0.08041963]
[1728545452851,0.25098,139.95,139.89,0.08041963]
[1728545452852,7.147,139.92,139.89,0.08041963]
[1728545453249,20.25098,139.95,139.89,0.08041963]
[1728545454057,7.1474,139.91,139.89,0.08041963]
[1728545465738,20.25098,139.95,139.89,0.08041963]
[1728545466053,27.27339,139.9,139.89,0.08041963]
[1728545468866,27.1479,139.9,139.89,0.08041963]
[1728545469046,7.1465,139.93,139.89,0.08041963]
[1728545469240,7.147,139.92,139.89,0.08041963]
[1728545469437,13.47301946,139.96,139.89,23.85730363]
[1728545469741,7.1465,139.93,139.89,31.00560363]
[1728545470065,7.45201946,139.96,139.91,23.776884]
[1728545470244,7.1458,139.95,139.91,30.924184]
[1728545470561,16.48648757,139.98,139.9,33.3926]
[1728545470742,7.1459,139.94,139.9,40.5403]
[1728545471371,7.1459,139.94,139.9,41.96958838]
[1728545471741,20.0,139.97,139.91,23.776884]
[1728545471963,20.0,139.94,139.91,23.776884]
[1728545472155,7.1449,139.96,139.92,7.1468]
[1728545472462,6.0605,139.99,139.92,7.1468]
[1728545472687,16.60604614,140.01,139.92,7.1468]
[1728545473456,7.145,139.96,139.92,7.1468]
[1728545474259,20.0,139.96,139.93,1.42911227]
[1728545474446,20.0,139.96,139.93,8.57531227]
[1728545474843,20.0,139.97,139.93,8.57531227]
[1728545475148,7.1439,139.98,139.93,8.57531227]
[1728545475471,7.1444,139.97,139.93,8.57531227]
[1728545476464,7.1444,139.97,139.93,1.42911227]
[1728545476773,7.1444,139.97,139.93,23.776884]
[1728545479666,7.145,139.96,139.92,17.8667]
[1728545490151,7.145,139.96,139.92,19.29580033]
[1728545490481,7.145,139.96,139.92,26.44260033]
[1728545492076,7.145,139.96,139.92,25.0135]
[1728545492689,0.25098,139.99,139.92,25.0135]
[1728545492690,7.1445,139.97,139.92,25.0135]
[1728545495681,7.1445,139.97,139.93,23.776884]
[1728545495978,7.1445,139.97,139.93,30.923284]
[1728545496368,7.1445,139.97,139.93,32.35228313]
[1728545496879,7.1445,139.97,139.93,30.923284]
[1728545511596,7.1454,139.95,139.9,22.671]
[1728545512495,7.1459,139.94,139.9,22.671]
[1728545512703,7.1467,139.93,139.9,16.95280362]
[1728545512884,7.1467,139.93,139.9,15.5235]
[1728545515796,20.25098,139.97,139.91,1.42935154]
[1728545516097,7.146,139.94,139.91,23.776884]
[1728545521999,7.45450881,140.0,139.93,7.1463]
[1728545522205,34.46244614,140.01,139.93,7.1463]
[1728545522206,34.46244614,140.01,139.94,1.42893857]
[1728545522500,34.46244614,140.01,139.93,7.1463]
[1728545522501,7.1442,139.98,139.93,7.1463]
[1728545523296,20.0,139.97,139.93,7.1463]
[1728545524594,7.1444,139.97,139.93,7.1463]
[1728545527591,7.1449,139.96,139.92,25.0135]
[1728545527792,7.1449,139.96,139.93,23.776884]
[1728545533006,20.25098,140.0,139.9,15.5235]
[1728545533007,7.1459,139.94,139.91,23.776884]
[1728545536507,7.1459,139.94,139.89,24.426]
[1728545536508,7.1469,139.92,139.89,17.8703]
[1728545537309,7.1469,139.92,139.86,16.6561983]
[1728545537511,7.1469,139.92,139.87,7.1493]
[1728545538603,7.1475,139.91,139.88,23.776884]
[1728545539403,7.147,139.92,139.88,23.776884]
[1728545540111,6.45809,139.96,139.88,7.1488]
[1728545540295,7.1464,139.93,139.88,7.1488]
[1728545540505,7.1464,139.93,139.89,1.42948546]
[1728545541217,7.1464,139.93,139.88,7.1488]
[1728545543405,7.147,139.92,139.88,7.1488]
[1728545543601,7.147,139.92,139.87,30.925884]
[1728545543796,7.147,139.92,139.88,8.57836041]
[1728545543999,7.147,139.92,139.88,7.1488]
[1728545546411,7.27199,139.93,139.88,8.57829347]
[1728545547313,7.1465,139.93,139.89,23.776884]
[1728545547504,20.0,139.93,139.89,23.776884]
[1728545547909,20.0,139.93,139.89,30.925184]
[1728545552026,7.147,139.92,139.88,25.0205]
[1728545552505,7.1464,139.93,139.88,25.0205]
[1728545553296,7.1464,139.93,139.89,23.776884]
[1728545553703,0.25098,139.93,139.86,23.8056983]
[1728545553999,7.1475,139.91,139.86,23.8056983]
[1728545555252,7.1475,139.91,139.87,23.776884]
[1728545556335,7.147,139.92,139.87,30.926284]
[1728545556503,0.25098,139.94,139.88,8.57848055]
[1728545556704,20.0,139.93,139.88,7.1489]
[1728545557241,20.0,139.93,139.88,8.57838702]
[1728545558534,20.0,139.93,139.89,23.776884]
[1728545558715,20.0,139.93,139.9,1.42935859]
[1728545559109,20.0,139.93,139.89,7.1483]
[1728545559610,20.0,139.93,139.9,1.42935875]
[1728545560024,20.0,139.93,139.9,1.42934588]
[1728545560517,20.0,139.93,139.9,23.776884]
[1728545562504,20.0,139.93,139.9,25.2062123]
[1728545562707,20.0,139.93,139.9,23.776884]
[1728545563133,20.0,139.93,139.9,25.20620608]
[1728545563335,20.0,139.93,139.9,23.776884]
[1728545575844,7.1463,139.94,139.9,25.20617697]
[1728545577821,7.1463,139.94,139.9,23.776884]
[1728545579032,7.1463,139.94,139.91,1.42926825]
[1728545579731,7.1463,139.94,139.91,1.42926443]
[1728545579732,20.0,139.94,139.91,1.42926443]
[1728545579950,20.0,139.94,139.9,30.924384]
[1728545581330,7.1463,139.94,139.9,23.776884]
[1728545583429,7.1464,139.93,139.9,23.776884]
[1728545584955,7.1464,139.93,139.91,1.4292894]
[1728545585132,7.1464,139.93,139.9,23.776884]
[1728545593443,7.1459,139.94,139.9,23.776884]
[1728545595362,7.1459,139.94,139.9,25.20617812]
[1728545596759,7.1459,139.94,139.9,23.776884]
[1728545597557,7.1467,139.93,139.9,23.776884]
[1728545599053,7.1467,139.93,139.89,25.0188]
[1728545599835,7.1467,139.93,139.9,1.42938553]
[1728545600356,7.1467,139.93,139.89,25.0188]
[1728545600548,12.79854687,139.98,139.94,30.431784]
[1728545600754,7.1412,140.04,139.99,23.776884]
[1728545600936,3.71500784,140.05,140.0,8.57097426]
[1728545601254,10.85520784,140.06,140.0,8.57097426]
[1728545601456,7.1402,140.06,140.0,1.42827426]
[1728545601753,7.1402,140.06,140.01,7.1422]
[1728545601940,6.5939,140.07,140.0,1.42827426]
[1728545602144,7.1403,140.05,140.0,8.57107426]
[1728545602347,7.1403,140.05,140.0,7.1428]
[1728545606357,20.0,140.05,140.01,7.1422]
[1728545607144,0.12549,140.07,139.99,39.709484]
[1728545607343,7.1403,140.05,140.0,7.1427]
[1728545607778,7.1403,140.05,140.01,23.776884]
[1728545608850,7.1408,140.04,139.99,23.0759]
[1728545609063,7.1408,140.04,140.0,23.776884]
[1728545610365,7.1418,140.02,139.99,23.776884]
[1728545610664,0.12549,140.07,139.99,23.776884]
[1728545610868,7.1413,140.03,139.99,23.776884]
[1728545612865,0.12549,140.04,139.99,25.20530043]
[1728545613245,7.1408,140.05,139.99,25.20530043]
[1728545614064,7.1408,140.05,140.01,23.776884]
[1728545614274,7.1408,140.05,140.01,8.57048529]
[1728545615765,20.0,140.05,140.02,1.42818838]
[1728545615952,20.0,140.05,140.01,7.1423]
[1728545616264,20.0,140.05,140.02,1.42818938]
[1728545616452,7.1392,140.08,140.02,8.56978938]
[1728545616654,27.1393,140.07,140.02,8.56978938]
[1728545616850,20.0,140.07,140.03,23.776884]
[1728545617058,1.24234489,140.1,140.04,1.42787699]
[1728545617387,7.1379,140.1,140.06,24.9884]
[1728545617744,16.2841,140.13,140.08,7.1383]
[1728545618776,7.1367,140.12,140.07,8.56695176]
[1728545619481,20.0,140.11,140.07,8.56695176]
[1728545619778,20.0,140.11,140.08,23.776884]
[1728545619961,7.1362,140.13,140.08,32.34294526]
[1728545620153,7.1362,140.13,140.08,30.915384]
[1728545621161,20.0,140.12,140.08,30.915384]
[1728545622673,7.1367,140.12,140.08,30.915384]
[1728545623256,7.1367,140.12,140.07,30.916084]
[1728545625974,0.25098,140.15,140.07,23.776884]
[1728545626185,7.1372,140.11,140.07,23.776884]
[1728545626559,17.8401,140.14,140.06,16.2172]
[1728545626783,17.8401,140.14,140.05,6.2423]
[1728545626784,6.11,140.13,140.03,17.853]
[1728545626968,7.1388,140.08,140.03,24.9941]
[1728545627582,53.10518,140.12,140.03,17.853]
[1728545628278,53.10518,140.12,140.04,23.776884]
[1728545629161,7.1388,140.08,140.04,23.776884]
[1728545633362,53.10518,140.12,140.04,23.776884]
[1728545634367,7.1388,140.08,140.04,23.776884]
[1728545637985,7.1388,140.08,140.04,30.917684]
[1728545638283,7.1378,140.1,140.06,23.776884]
[1728545641474,20.0,140.1,140.07,1.42769898]
[1728545641669,1.24205201,140.15,140.08,8.56592937]
[1728545641994,44.66376126,140.17,140.08,8.56592937]
[1728545643171,20.25098,140.15,140.08,8.56592937]
[1728545643485,7.1368,140.12,140.08,8.56592937]
[1728545643677,7.1363,140.13,140.09,23.776884]
[1728545643886,20.0,140.12,140.09,23.776884]
[1728545644083,20.0,140.13,140.1,8.56504204]
[1728545644477,20.0,140.13,140.1,23.776884]
[1728545647693,20.0,140.13,140.1,25.20417904]
[1728545648384,7.1357,140.14,140.1,25.20417904]
[1728545650562,7.1357,140.14,140.1,23.776884]
[1728545651470,7.1362,140.13,140.1,23.776884]
[1728545651885,20.25098,140.16,140.1,23.776884]
[1728545653485,7.1362,140.13,140.1,23.776884]
[1728545656272,7.1362,140.13,140.1,25.20417766]
[1728545656492,7.1362,140.13,140.1,23.776884]
[1728545657875,7.1362,140.13,140.1,25.20417752]
[1728545658394,7.1362,140.13,140.1,23.776884]
[1728545658590,20.25098,140.16,140.1,23.776884]
[1728545659178,7.1363,140.13,140.1,23.776884]
[1728545659672,7.1363,140.13,140.09,23.776884]
[1728545661373,7.1363,140.13,140.09,7.1381]
[1728545661580,7.1363,140.13,140.1,23.776884]
[1728545664480,7.1355,140.15,140.1,7.1373]
[1728545664808,7.1358,140.14,140.1,7.1373]
[1728545665595,7.1358,140.14,140.09,23.776884]
[1728545665796,7.1358,140.14,140.09,30.914984]
[1728545669785,7.1353,140.15,140.1,7.1373]
[1728545669985,20.25098,140.16,140.1,7.1373]
[1728545670300,7.1359,140.14,140.1,7.1373]
[1728545672290,27.135,140.16,140.11,7.1371]
[1728545672490,27.135,140.16,140.12,8.56376577]
[1728545674400,20.0,140.16,140.13,23.776884]
[1728545674608,7.1342,140.17,140.14,1.42694802]
[1728545675605,3.38173455,140.18,140.14,8.56244802]
[1728545675909,3.38173455,140.18,140.14,7.1356]
[1728545676085,3.38173455,140.18,140.15,23.776884]
[1728545677308,23.38173455,140.18,140.15,23.776884]
[1728545677607,10.51553455,140.18,140.13,7.1362]
[1728545677913,10.51553455,140.18,140.14,23.776884]
[1728545680695,10.51553455,140.18,140.14,7.1356]
[1728545683913,10.51553455,140.18,140.15,1.42684834]
[1728545684917,10.51553455,140.18,140.14,7.1356]
[1728545685494,10.51553455,140.18,140.15,23.776884]
[1728545685691,3.38173455,140.18,140.15,23.776884]
[1728545685916,3.38173455,140.18,140.16,1.42673291]
[1728545687416,3.38173455,140.18,140.15,30.911984]
[1728545687417,3.38173455,140.18,140.15,23.776884]
[1728545687814,7.1343,140.17,140.14,23.776884]
[1728545688007,7.1343,140.17,140.13,23.776884]
[1728545688395,7.1343,140.17,140.14,23.776884]
[1728545688720,10.51553455,140.18,140.14,23.776884]
[1728545689022,7.1342,140.17,140.13,23.776884]
[1728545689314,7.1342,140.17,140.11,39.2995]
[1728545689495,7.1342,140.17,140.14,23.776884]
[1728545690200,3.38173455,140.18,140.16,23.776884]
[1728545691498,3.38173455,140.18,140.16,25.20354906]
[1728545691818,3.38173455,140.18,140.16,23.776884]
[1728545692419,3.38173455,140.18,140.17,1.42666403]
[1728545692620,3.38173455,140.18,140.16,23.776884]
[1728545702604,3.38173455,140.18,140.13,17.8398]
[1728545702907,7.1343,140.17,140.14,23.776884]
[1728545707837,10.51543455,140.18,140.15,1.42683508]
[1728545708302,10.51543455,140.18,140.14,30.912384]
[1728545709133,10.51543455,140.18,140.14,23.776884]
[1728545713515,3.38173455,140.18,140.15,1.42683245]
[1728545713722,3.38173455,140.18,140.16,23.776884]
[1728545713921,3.38173455,140.18,140.17,1.42668174]
[1728545714516,3.38173455,140.18,140.16,23.776884]
[1728545714716,3.38173455,140.18,140.17,1.42666614]
[1728545715834,3.38173455,140.18,140.16,1.42666892]
[1728545716039,3.38173455,140.18,140.17,23.776884]
[1728545718226,3.38173455,140.18,140.17,30.910984]
[1728545720937,3.38173455,140.18,140.16,30.911384]
[1728545724267,3.38173455,140.18,140.16,23.776884]
[1728545725553,3.38173455,140.18,140.15,33.9598]
[1728545725935,3.38173455,140.18,140.15,35.38658609]
[1728545729161,3.38173455,140.18,140.15,33.9598]
[1728545729540,3.38173455,140.18,140.15,35.38658522]
[1728545730365,3.38173455,140.18,140.15,42.52138522]
[1728545730658,3.38173455,140.18,140.16,1.4266986]
[1728545731847,3.38173455,140.18,140.16,8.5611986]
[1728545732743,3.38173455,140.18,140.16,7.1345]
[1728545734667,3.38173455,140.18,140.16,23.776884]
[1728545735156,10.51553455,140.18,140.15,23.776884]
[1728545737260,10.51553455,140.18,140.12,17.841]
[1728545737261,0.12549,140.17,140.12,17.841]
[1728545737452,7.1349,140.16,140.12,17.841]
[1728545740379,7.1349,140.16,140.12,24.9776]